bitfinex/quotes_SOLUSD_20250118
["timestamp","ask_amount","ask_price","bid_price","bid_amount"]
[1737198634542,19.68954012,241.76,241.7,24.1372]
[1737198636169,19.68954012,241.76,241.71,0.03]
[1737198638683,19.68954012,241.73,241.71,0.03]
[1737198639347,19.68954012,241.73,241.63,0.03]
[1737198639549,19.68954012,241.67,241.63,0.03]
[1737198643172,4.1358,241.79,241.67,20.0]
[1737198643486,19.68954012,241.74,241.67,20.0]
[1737198643669,19.68954012,241.68,241.63,0.03]
[1737198643871,19.68954012,241.66,241.63,0.03]
[1737198644251,19.68954012,241.64,241.63,0.03]
[1737198644553,20.0,241.61,241.6,0.03]
[1737198644761,23.776884,241.6,241.56,0.03]
[1737198644962,23.82894012,241.58,241.56,0.03]
[1737198645163,43.51848024,241.58,241.56,0.03]
[1737198645375,67.29536424,241.58,241.56,0.03]
[1737198645677,0.61996584,241.57,241.46,0.03]
[1737198645852,19.68954012,241.48,241.46,0.03]
[1737198646049,43.46642412,241.47,241.29,1.73269887]
[1737198646248,43.46642412,241.43,241.29,1.73269887]
[1737198646476,23.776884,241.42,241.29,1.73269887]
[1737198646671,20.30950596,241.43,241.21,0.62135011]
[1737198646672,19.68954012,241.31,241.21,0.62135011]
[1737198646866,19.68954012,241.28,241.2,19.68954012]
[1737198647065,19.68954012,241.28,241.21,4.1457]
[1737198647374,19.68954012,241.29,241.2,19.68954012]
[1737198647577,19.68954012,241.27,241.18,29.91044012]
[1737198647753,19.68954012,241.27,241.18,25.76434012]
[1737198648159,19.68954012,241.27,241.21,20.0]
[1737198648558,19.68954012,241.27,241.18,29.91044012]
[1737198648559,19.68954012,241.27,241.18,25.76434012]
[1737198648766,19.68954012,241.2,241.11,23.83694012]
[1737198648978,0.61996584,241.26,241.07,10.3702]
[1737198648979,19.68954012,241.18,241.09,23.83734012]
[1737198649271,19.68954012,241.2,241.15,20.0]
[1737198649474,19.68954012,241.2,241.1,19.68954012]
[1737198649475,32.17854308,241.17,241.09,4.1478]
[1737198649857,32.17854308,241.13,241.05,0.62199909]
[1737198650063,32.17854308,241.13,241.07,4.1481]
[1737198650266,32.17854308,241.17,241.12,20.0]
[1737198650674,32.17854308,241.15,241.07,36.32664308]
[1737198650874,24.39684984,241.27,240.98,4.1497]
[1737198650875,32.17854308,241.08,240.98,4.1497]
[1737198651061,32.17854308,241.08,240.98,36.32824308]
[1737198651257,32.17854308,241.08,241.0,32.17854308]
[1737198651455,32.17854308,241.08,240.98,36.32824308]
[1737198651659,32.17854308,241.1,241.02,32.17854308]
[1737198651862,32.79850892,241.2,240.98,4.1497]
[1737198651863,32.17854308,241.06,240.98,4.1497]
[1737198652083,32.17854308,241.08,241.0,32.17854308]
[1737198652310,32.17854308,241.06,240.98,4.1497]
[1737198652608,4.1458,241.21,241.07,20.0]
[1737198652778,32.17854308,241.16,241.11,20.0]
[1737198653970,32.17854308,241.18,241.11,20.0]
[1737198654483,32.17854308,241.25,241.16,32.17854308]
[1737198654672,32.17854308,241.25,241.17,23.776884]
[1737198654875,32.17854308,241.25,241.2,20.0]
[1737198655076,32.17854308,241.27,241.21,23.776884]
[1737198655271,32.17854308,241.27,241.21,20.0]
[1737198655472,32.17854308,241.22,241.12,32.17854308]
[1737198655872,32.17854308,241.22,241.15,20.0]
[1737198656399,32.17854308,241.18,241.1,4.1476]
[1737198658186,0.61996584,241.29,241.1,4.1476]
[1737198658187,32.17854308,241.22,241.15,20.0]
[1737198658505,32.17854308,241.24,241.16,32.17854308]
[1737198658671,32.17854308,241.22,241.14,32.17854308]
[1737198658871,32.17854308,241.22,241.12,32.17854308]
[1737198659371,32.17854308,241.22,241.15,20.0]
[1737198659597,32.17854308,241.25,241.17,20.0]
[1737198659898,32.17854308,241.25,241.15,23.776884]
[1737198660396,32.17854308,241.25,241.14,0.62183631]
[1737198660591,32.17854308,241.18,241.09,32.17854308]
[1737198660790,32.17854308,241.18,241.06,4.1483]
[1737198660791,32.17854308,241.14,241.06,4.1483]
[1737198661289,32.17854308,241.14,241.06,18.1483]
[1737198661875,32.17854308,241.16,241.1,20.0]
[1737198662093,32.17854308,241.19,241.12,20.0]
[1737198662503,32.17854308,241.19,241.13,23.776884]
[1737198662675,32.17854308,241.21,241.11,32.17854308]
[1737198662876,32.17854308,241.19,241.14,20.0]
[1737198664001,32.17854308,241.19,241.09,32.17854308]
[1737198664002,32.17854308,241.19,241.13,20.0]
[1737198664182,32.17854308,241.21,241.14,20.0]
[1737198664506,32.17854308,241.19,241.14,20.0]
[1737198664679,32.17854308,241.19,241.11,32.17854308]
[1737198664879,32.17854308,241.19,241.12,23.776884]
[1737198665388,32.17854308,241.19,241.11,23.776884]
[1737198665899,32.17854308,241.19,240.86,20.0]
[1737198665900,32.17854308,241.13,241.05,32.17854308]
[1737198666100,32.17854308,241.11,241.03,32.17854308]
[1737198666290,32.17854308,241.11,241.01,36.32774308]
[1737198666485,32.17854308,241.09,241.01,36.32774308]
[1737198667193,32.17854308,241.09,241.01,4.1492]
[1737198667594,32.17854308,241.07,241.01,4.1492]
[1737198667808,32.17854308,241.05,240.97,0.62221909]
[1737198667988,32.17854308,241.03,240.97,4.1497]
[1737198668180,32.17854308,240.99,240.85,32.17854308]
[1737198668380,32.17854308,241.08,240.88,32.17854308]
[1737198668381,32.17854308,240.96,240.88,32.17854308]
[1737198668607,32.17854308,241.08,240.9,4.80349985]
[1737198668796,32.17854308,241.0,240.91,32.17854308]
[1737198669314,32.17854308,240.98,240.9,4.181]
[1737198669618,32.17854308,240.95,240.9,4.181]
[1737198669904,32.17854308,240.99,240.92,20.0]
[1737198670204,32.17854308,240.97,240.92,20.0]
[1737198670503,32.17854308,240.95,240.9,0.03]
[1737198670904,15.13846584,241.07,240.9,0.03]
[1737198670905,32.17854308,240.93,240.9,0.03]
[1737198671110,32.17854308,240.91,240.9,0.03]
[1737198673408,32.17854308,240.91,240.76,0.03]
[1737198673409,20.0,240.88,240.76,0.03]
[1737198673589,32.17854308,240.78,240.76,0.03]
[1737198673793,32.17854308,240.8,240.76,0.03]
[1737198674316,32.17854308,240.78,240.76,0.03]
[1737198674525,32.17854308,240.82,240.76,4.1834]
[1737198674690,32.17854308,240.84,240.76,4.1834]
[1737198674895,4.1511,240.9,240.76,4.1834]
[1737198674896,32.17854308,240.8,240.76,4.1834]
[1737198675099,32.17854308,240.82,240.76,4.1834]
[1737198675317,32.17854308,240.78,240.76,0.03]
[1737198677117,32.17854308,240.78,240.56,20.0]
[1737198677413,32.17854308,240.78,240.7,4.1545]
[1737198677992,32.17854308,240.82,240.76,20.0]
[1737198678205,32.17854308,240.88,240.79,32.17854308]
[1737198678523,32.17854308,240.84,240.76,0.31360662]
[1737198678705,32.17854308,240.84,240.78,20.0]
[1737198679126,32.17854308,240.82,240.73,32.17854308]
[1737198679297,32.17854308,240.84,240.76,20.0]
[1737198679617,32.17854308,240.84,240.75,32.17854308]
[1737198680408,32.17854308,240.84,240.78,20.0]
[1737198680615,32.17854308,240.84,240.75,32.17854308]
[1737198680808,32.17854308,240.84,240.76,3.34]
[1737198681027,32.17854308,240.78,240.76,3.34]
[1737198681402,32.17854308,240.78,240.76,7.4935]
[1737198682020,32.17854308,240.78,240.7,3.34]
[1737198682200,32.17854308,240.74,240.7,3.34]
[1737198682398,32.17854308,240.74,240.7,7.4945]
[1737198682818,32.17854308,240.78,240.7,7.4945]
[1737198682997,32.17854308,240.78,240.71,32.17854308]
[1737198683199,32.17854308,240.8,240.71,32.17854308]
[1737198683424,32.17854308,240.8,240.72,4.1542]
[1737198684529,32.17854308,240.8,240.73,32.4927865]
[1737198684694,32.17854308,240.78,240.72,14.5397]
[1737198684894,32.17854308,240.78,240.73,0.16]
[1737198685726,28.89109167,240.78,240.73,0.16]
[1737198686049,28.89109167,240.78,240.74,4.1538]
[1737198686401,32.17854308,240.8,240.74,4.1538]
[1737198686612,0.063,240.82,240.75,32.17854308]
[1737198686998,0.063,240.82,240.76,0.16]
[1737198687325,0.063,240.82,240.77,32.17854308]
[1737198687623,0.063,240.82,240.78,0.31382027]
[1737198687804,0.063,240.82,240.78,4.1531]
[1737198688128,0.063,240.82,240.78,4.62703627]
[1737198688327,0.063,240.82,240.78,4.3131]
[1737198688513,32.24154308,240.82,240.78,4.3131]
[1737198688822,32.24154308,240.82,240.78,0.16]
[1737198689028,32.17854308,240.8,240.78,0.16]
[1737198689532,32.24154308,240.82,240.78,0.16]
[1737198689841,32.17854308,240.8,240.78,0.16]
[1737198690137,32.17854308,240.8,240.73,31.33224308]
[1737198690341,32.17854308,240.77,240.69,10.3866]
[1737198690645,32.17854308,240.75,240.71,0.16]
[1737198691111,32.17854308,240.73,240.71,0.16]
[1737198691313,0.063,240.82,240.71,32.17854308]
[1737198691631,0.063,240.82,240.76,32.17854308]
[1737198692036,0.063,240.82,240.77,4.1533]
[1737198692915,0.063,240.82,240.77,18.1533]
[1737198693115,0.063,240.82,240.77,4.1533]
[1737198694233,0.063,240.82,240.74,32.17854308]
[1737198694620,32.17854308,240.8,240.75,12.8]
[1737198695111,32.17854308,240.8,240.73,4.154]
[1737198695936,32.24154308,240.82,240.74,32.17854308]
[1737198696114,32.24154308,240.82,240.73,14.539]
[1737198696115,32.17854308,240.78,240.7,46.17854308]
[1737198696321,32.17854308,240.78,240.71,4.1543]
[1737198696533,0.063,240.82,240.76,52.17854308]
[1737198696844,0.063,240.82,240.79,32.17854308]
[1737198697128,0.063,240.82,240.77,32.49242954]
[1737198697510,0.063,240.82,240.76,20.0]
[1737198697511,0.063,240.82,240.71,4.1543]
[1737198697718,0.063,240.82,240.75,32.17854308]
[1737198697917,0.063,240.82,240.77,32.17854308]
[1737198698116,0.063,240.82,240.79,32.17854308]
[1737198698334,0.063,240.82,240.8,4.1528]
[1737198698923,0.063,240.82,240.81,32.17854308]
[1737198699331,19.84631121,240.93,240.81,43.62319521]
[1737198699523,4.1498,240.98,240.84,19.84631121]
[1737198699736,19.84631121,240.93,240.84,19.84631121]
[1737198700437,19.84631121,240.93,240.85,4.1519]
[1737198700814,4.1493,241.01,240.85,4.1519]
[1737198701017,19.84631121,240.89,240.86,0.31347421]
[1737198701221,19.84631121,240.89,240.8,23.99911121]
[1737198701434,19.84631121,240.98,240.88,19.84631121]
[1737198701641,19.84631121,241.0,240.84,23.776884]
[1737198701817,19.84631121,241.0,240.91,19.84631121]
[1737198702817,19.84631121,241.02,240.92,4.1507]
[1737198703148,19.84631121,241.02,240.93,19.84631121]
[1737198703550,19.84631121,241.02,240.92,4.1507]
[1737198703919,19.84631121,240.98,240.91,4.1508]
[1737198704244,4.92632234,241.06,240.91,4.1508]
[1737198704245,19.84631121,240.96,240.91,4.1508]
[1737198704936,19.84631121,240.96,240.88,4.1514]
[1737198705530,19.84631121,241.08,240.88,4.1514]
[1737198705531,19.84631121,241.01,240.91,19.84631121]
[1737198705751,19.84631121,241.01,240.92,20.0]
[1737198706061,19.84631121,240.99,240.89,43.62319521]
[1737198706420,10.3666,241.07,240.89,43.62319521]
[1737198706421,0.063,241.07,240.98,19.84631121]
[1737198706623,0.063,241.07,241.0,19.84631121]
[1737198707052,0.063,241.07,241.01,4.1492]
[1737198707557,0.063,241.07,241.01,14.5222]
[1737198708321,19.84631121,241.04,240.94,23.99671121]
[1737198708581,19.84631121,241.02,240.94,23.99671121]
[1737198708936,19.84631121,241.02,240.94,34.37271121]
[1737198709140,19.84631121,241.02,240.95,23.776884]
[1737198709337,19.84631121,241.06,240.97,23.776884]
[1737198709541,0.063,241.07,241.01,20.0]
[1737198709939,0.063,241.07,240.94,4.1504]
[1737198709940,19.84631121,241.03,240.94,4.1504]
[1737198710145,19.84631121,241.05,240.95,19.84631121]
[1737198710450,19.84631121,241.03,240.94,14.5264]
[1737198710750,19.84631121,241.01,240.94,4.1504]
[1737198711047,19.84631121,241.01,240.94,24.1504]
[1737198711746,19.84631121,241.01,240.94,4.1504]
[1737198713634,19.84631121,241.01,240.95,23.776884]
[1737198713849,19.84631121,240.99,240.92,4.1506]
[1737198714150,19.84631121,240.97,240.92,4.1506]
[1737198714447,19.84631121,240.97,240.9,4.1509]
[1737198714947,19.84631121,240.91,240.78,19.84631121]
[1737198715253,19.84631121,240.85,240.79,4.1529]
[1737198715453,19.84631121,240.83,240.77,4.1533]
[1737198715942,19.84631121,240.81,240.77,4.1533]
[1737198716152,19.84631121,240.81,240.75,82.9]
[1737198716153,19.84631121,240.79,240.75,72.0535]
[1737198716332,19.84631121,240.77,240.74,0.03]
[1737198717230,19.84631121,240.79,240.74,4.1838]
[1737198717430,32.28122682,240.8,240.74,4.1838]
[1737198717632,32.28122682,240.76,240.74,0.03]
[1737198720149,32.28122682,240.76,240.75,0.03]
[1737198720547,32.28122682,240.78,240.75,0.03]
[1737198721438,6.4202,240.9,240.77,23.776884]
[1737198721439,32.28122682,240.85,240.77,23.776884]
[1737198721661,32.28122682,240.85,240.79,23.776884]
[1737198722348,32.28122682,240.87,240.79,23.776884]
[1737198722842,32.28122682,240.83,240.79,23.776884]
[1737198723157,32.28122682,240.89,240.81,23.776884]
[1737198723361,32.28122682,240.92,240.84,32.28122682]
[1737198723658,32.28122682,240.94,240.85,23.776884]
[1737198723867,32.28122682,240.94,240.85,38.308684]
[1737198724172,32.28122682,240.86,240.83,4.1521]
[1737198724345,32.28122682,240.9,240.83,4.1521]
[1737198724659,32.28122682,240.94,240.87,20.0]
[1737198724849,32.28122682,240.98,240.91,20.0]
[1737198725057,32.28122682,241.01,240.94,23.776884]
[1737198725576,32.28122682,241.03,240.94,23.776884]
[1737198725864,32.28122682,241.03,240.95,4.1502]
[1737198726267,32.28122682,241.01,240.96,23.776884]
[1737198726562,32.28122682,241.01,240.95,4.1502]
[1737198726563,32.28122682,240.99,240.95,4.1502]
[1737198727350,32.28122682,240.96,240.9,4.1511]
[1737198727559,32.28122682,240.94,240.9,4.1511]
[1737198727851,32.28122682,240.92,240.85,14.5318]
[1737198728469,32.28122682,240.9,240.85,4.1519]
[1737198728653,32.28122682,240.88,240.85,4.1519]
[1737198729168,32.28122682,240.86,240.76,10.3837]
[1737198729464,32.28122682,240.8,240.77,4.1533]
[1737198729850,0.77831101,240.95,240.74,0.03]
[1737198729851,32.28122682,240.78,240.74,0.03]
[1737198731356,32.28122682,240.76,240.74,0.03]
[1737198736574,68.71605364,240.76,240.58,46.28122682]
[1737198736787,32.28122682,240.67,240.59,4.1564]
[1737198737171,32.28122682,240.67,240.6,23.776884]
[1737198737567,32.28122682,240.69,240.6,56.05811082]
[1737198738493,32.28122682,240.69,240.61,4.1561]
[1737198738979,32.28122682,240.69,240.62,23.776884]
[1737198739189,32.28122682,240.71,240.66,23.776884]
[1737198739394,32.28122682,240.71,240.62,32.28122682]
[1737198739695,32.28122682,240.69,240.61,28.5463]
[1737198739866,32.28122682,240.71,240.65,23.776884]
[1737198740178,32.28122682,240.73,240.66,23.776884]
[1737198740393,32.28122682,240.84,240.7,23.776884]
[1737198740679,32.28122682,240.76,240.71,4.1543]
[1737198740882,32.28122682,240.74,240.71,4.1543]
[1737198741102,32.28122682,240.76,240.72,23.776884]
[1737198741290,32.28122682,240.84,240.72,23.776884]
[1737198741291,32.28122682,240.78,240.72,23.776884]
[1737198741462,19.86626054,240.81,240.76,23.776884]
[1737198741991,19.86626054,240.83,240.76,23.776884]
[1737198742171,19.86626054,240.85,240.76,43.64314454]
[1737198742355,19.86626054,240.83,240.76,43.64314454]
[1737198742556,19.86626054,240.83,240.77,14.5366]
[1737198743083,19.86626054,240.83,240.78,23.776884]
[1737198743480,32.26975712,240.84,240.78,23.776884]
[1737198743789,32.26975712,240.82,240.78,23.776884]
[1737198744583,32.26975712,240.8,240.72,23.776884]
[1737198744886,32.26975712,240.82,240.78,23.776884]
[1737198745061,32.26975712,240.82,240.75,23.776884]
[1737198745262,32.26975712,240.84,240.78,23.776884]
[1737198745465,32.26975712,240.86,240.78,23.776884]
[1737198746292,32.26975712,240.86,240.82,43.776884]
[1737198746467,32.26975712,240.9,240.82,43.776884]
[1737198746764,32.26975712,240.9,240.83,4.1523]
[1737198746961,32.26975712,240.9,240.84,23.776884]
[1737198747665,32.26975712,240.94,240.88,23.776884]
[1737198747987,32.26975712,240.98,240.88,56.04664112]
[1737198748191,32.26975712,240.98,240.91,23.776884]
[1737198748787,32.26975712,240.95,240.87,4.1516]
[1737198748984,32.26975712,240.93,240.87,4.1516]
[1737198749175,32.26975712,240.91,240.85,4.1518]
[1737198749500,32.26975712,240.87,240.81,4.1525]
[1737198749881,32.26975712,240.89,240.83,23.776884]
[1737198750084,32.26975712,240.91,240.86,20.0]
[1737198750394,32.26975712,240.9,240.82,72.0524]
[1737198750697,32.26975712,240.84,240.78,137.3]
[1737198750881,32.26975712,240.96,240.78,32.26975712]
[1737198751075,32.26975712,240.96,240.8,32.26975712]
[1737198751385,32.26975712,240.88,240.81,23.776884]
[1737198751964,32.26975712,240.88,240.83,23.776884]
[1737198752167,32.26975712,240.9,240.82,4.1524]
[1737198752397,32.26975712,240.84,240.75,36.42335712]
[1737198752574,4.1504,240.94,240.71,6.6642]
[1737198752575,32.26975712,240.8,240.74,4.1838]
[1737198752899,14.5264,240.94,240.77,32.26975712]
[1737198752900,32.26975712,240.86,240.77,32.26975712]
[1737198753083,32.26975712,240.89,240.8,23.776884]
[1737198754087,32.26975712,240.89,240.81,4.1526]
[1737198754487,32.26975712,240.89,240.82,23.776884]
[1737198754690,32.26975712,240.87,240.82,23.776884]
[1737198755600,32.26975712,240.83,240.78,4.1531]
[1737198755783,32.26975712,240.79,240.76,4.1534]
[1737198755981,32.26975712,240.87,240.78,32.26975712]
[1737198756187,32.26975712,240.87,240.82,43.776884]
[1737198756375,32.26975712,240.89,240.82,43.776884]
[1737198756870,32.26975712,240.89,240.82,57.776884]
[1737198757103,32.26975712,240.91,240.82,90.04664112]
[1737198758015,32.26975712,240.91,240.84,23.776884]
[1737198759011,6.4003,241.04,240.88,23.776884]
[1737198759210,32.26975712,240.96,240.89,20.0]
[1737198760203,32.26975712,240.96,240.91,23.776884]
[1737198760411,32.26975712,240.94,240.9,4.1511]
[1737198760894,32.26975712,240.94,240.91,23.776884]
[1737198761697,32.26975712,240.96,240.91,23.776884]
[1737198762009,32.26975712,240.98,240.91,23.776884]
[1737198762304,32.26975712,240.98,240.93,23.776884]
[1737198763906,32.26975712,240.98,240.91,38.305084]
[1737198764113,32.26975712,240.96,240.89,4.1511]
[1737198764415,32.26975712,240.92,240.89,4.1511]
[1737198765417,19.84381836,240.94,240.89,4.1511]
[1737198765591,19.84381836,240.94,240.88,27.928284]
[1737198767607,0.063,241.07,240.87,67.9]
[1737198767608,19.84381836,240.9,240.87,67.9]
[1737198767801,19.84381836,240.92,240.87,72.0516]
[1737198767989,19.84381836,241.0,240.92,23.776884]
[1737198768200,19.84381836,241.02,240.95,23.776884]
[1737198768502,19.84381836,241.0,240.95,23.776884]
[1737198768721,19.84381836,241.0,240.94,23.776884]
[1737198769517,19.84381836,241.0,240.95,4.1502]
[1737198770498,19.84381836,241.06,240.99,39.84381836]
[1737198770693,0.063,241.07,241.04,20.0]
[1737198770907,0.063,241.07,241.05,20.0]
[1737198771322,0.063,241.07,241.02,23.776884]
[1737198771502,0.063,241.07,240.97,143.7257]
[1737198771503,0.063,241.07,241.06,43.776884]
[1737198771708,0.063,241.07,241.06,47.925184]
[1737198772016,0.063,241.07,241.06,4.1483]
[1737198772202,0.063,241.07,241.04,20.0]
[1737198772393,19.84381836,241.06,240.95,19.84381836]
[1737198772601,0.063,241.07,240.95,19.84381836]
[1737198772602,19.84381836,241.03,240.95,19.84381836]
[1737198772797,19.84381836,241.03,240.96,23.776884]
[1737198773211,19.84381836,241.05,240.96,23.776884]
[1737198773517,19.84381836,241.05,240.99,20.0]
[1737198773724,19.84381836,241.05,241.0,4.1493]
[1737198774421,19.84381836,241.03,241.0,4.1493]
[1737198775111,19.84381836,241.01,240.96,4.15]
[1737198775411,19.84381836,240.99,240.96,4.15]
[1737198775613,19.84381836,241.01,240.96,4.15]
[1737198775819,19.84381836,241.03,240.97,23.776884]
[1737198776716,19.84381836,241.03,240.96,14.5251]
[1737198776895,19.84381836,241.01,240.96,4.15]
[1737198778100,19.84381836,241.03,240.96,4.15]
[1737198778308,19.90681836,241.07,240.99,23.776884]
[1737198778932,0.063,241.07,241.04,23.776884]
[1737198779099,0.063,241.07,241.06,43.776884]
[1737198780434,19.84381836,241.16,241.11,23.776884]
[1737198780610,19.84381836,241.18,241.11,23.776884]
[1737198781224,6.2051,241.23,241.11,23.776884]
[1737198781530,6.2051,241.23,241.1,20.0]
[1737198781531,19.84381836,241.16,241.1,20.0]
[1737198781723,19.84381836,241.16,241.08,19.84381836]
[1737198781927,19.84381836,241.16,241.09,23.776884]
[1737198782303,19.84381836,241.16,241.1,4.1476]
[1737198782507,19.84381836,241.12,241.08,4.1478]
[1737198782907,19.84381836,241.1,241.03,4.1488]
[1737198783126,19.84381836,241.04,240.98,137.3]
[1737198783532,19.84381836,241.04,241.02,72.049]
[1737198784105,19.84381836,241.04,241.02,67.9]
[1737198784328,19.84381836,241.04,240.94,19.84381836]
[1737198784626,19.84381836,241.02,240.95,4.1502]
[1737198785008,19.84381836,241.04,240.96,23.776884]
[1737198785213,19.84381836,241.04,240.96,43.62070236]
[1737198786537,19.84381836,241.06,240.97,14.5245]
[1737198787034,19.84381836,241.04,240.97,4.1498]
[1737198787327,19.84381836,241.02,240.97,4.1498]
[1737198787530,19.84381836,241.04,240.97,4.1498]
[1737198788124,19.84381836,241.08,240.99,4.1495]
[1737198788320,19.84381836,241.08,241.0,23.776884]
[1737198788834,19.84381836,241.08,241.0,43.62070236]
[1737198789019,19.84381836,241.12,241.08,23.776884]
[1737198789331,19.84381836,241.12,241.07,20.0]
[1737198790229,19.84381836,241.12,241.06,4.1483]
[1737198790422,19.84381836,241.12,241.07,23.776884]
[1737198791012,19.84381836,241.15,241.07,23.776884]
[1737198791213,19.84381836,241.13,241.07,23.776884]
[1737198791413,23.98981836,241.2,241.03,10.3717]
[1737198791414,19.84381836,241.08,241.03,4.1488]
[1737198791732,15.2888655,241.19,241.0,4.1493]
[1737198791733,19.84381836,241.06,241.0,4.1493]
[1737198791912,19.84381836,241.02,240.93,4.1505]
[1737198792112,19.84381836,241.0,240.93,4.1505]
[1737198793036,19.84381836,240.98,240.92,72.0507]
[1737198794020,0.77803744,241.07,240.92,72.0507]
[1737198794219,6.5473,241.08,240.92,72.0507]
[1737198794220,19.84381836,241.06,240.97,19.84381836]
[1737198794546,3.02711802,241.06,241.03,43.62070236]
[1737198794910,3.02711802,241.06,241.03,23.776884]
[1737198795212,3.02711802,241.06,241.05,43.776884]
[1737198795415,3.02711802,241.06,241.05,47.925384]
[1737198796014,19.84381836,241.14,241.05,67.76920236]
[1737198796337,19.84381836,241.14,241.05,78.14040236]
[1737198797636,19.84381836,241.14,241.05,92.14040236]
[1737198799216,6.5473,241.22,241.11,23.776884]
[1737198799417,19.84381836,241.17,241.11,23.776884]
[1737198799722,19.84381836,241.13,241.05,4.1485]
[1737198799926,19.84381836,241.11,241.05,4.1485]
[1737198800223,19.84381836,241.13,241.06,23.776884]
[1737198800942,19.84381836,241.13,241.05,4.1485]
[1737198800943,19.84381836,241.13,241.05,14.5197]
[1737198801238,20.62134297,241.2,241.05,14.5197]
[1737198801239,19.84381836,241.09,241.05,4.1485]
[1737198801621,19.84381836,241.11,241.05,4.1485]
[1737198802235,19.84381836,241.17,241.07,19.84381836]
[1737198802734,19.84381836,241.19,241.1,23.776884]
[1737198802916,19.84381836,241.19,241.11,19.84381836]
[1737198803517,19.84381836,241.19,241.13,20.0]
[1737198803927,19.84381836,241.19,241.14,23.776884]
[1737198804335,19.84381836,241.19,241.15,4.1467]
[1737198806161,19.84381836,241.19,241.1,10.3687]
[1737198806162,19.84381836,241.17,241.1,14.5163]
[1737198806332,19.84381836,241.19,241.1,14.5163]
[1737198806928,19.84381836,241.19,241.11,23.776884]
[1737198807129,19.84381836,241.17,241.11,23.776884]
[1737198807721,6.864349,241.25,241.18,20.0]
[1737198807918,6.864349,241.25,241.19,23.776884]
[1737198808117,6.864349,241.25,241.23,43.776884]
[1737198808347,4.9e-05,241.25,241.24,47.76590236]
[1737198809547,4.9e-05,241.25,241.24,27.922084]
[1737198811451,4.9e-05,241.25,241.24,47.76590236]
[1737198812047,4.9e-05,241.25,241.24,252.96590236]
[1737198812355,19.84381836,241.48,241.4,23.776884]
[1737198812563,19.84381836,241.44,241.39,4.1426]
[1737198813031,0.063,241.5,241.36,4.143]
[1737198813032,19.84381836,241.42,241.36,4.143]
[1737198814052,19.84381836,241.4,241.35,23.776884]
[1737198814353,19.84381836,241.42,241.38,20.0]
[1737198814553,19.84381836,241.44,241.37,23.776884]
[1737198814849,19.84381836,241.46,241.38,19.84381836]
[1737198815040,19.84381836,241.46,241.39,23.776884]
[1737198815353,0.063,241.5,241.49,20.0]
[1737198815556,0.0001,241.5,241.49,63.62070236]
[1737198815849,0.063,241.67,241.49,245.04381836]
[1737198816058,19.84381836,241.66,241.58,4.1394]
[1737198816254,19.84381836,241.62,241.58,4.1394]
[1737198816546,19.84381836,241.64,241.59,23.776884]
[1737198816766,19.84381836,241.66,241.59,23.776884]
[1737198816929,0.063,241.67,241.61,19.84381836]
[1737198817348,0.063,241.67,241.62,23.776884]
[1737198817729,0.063,241.67,241.62,37.776884]
[1737198818233,0.063,241.67,241.63,4.1385]
[1737198819259,19.84381836,241.66,241.59,19.84381836]
[1737198819441,19.84381836,241.66,241.49,207.186371]
[1737198819442,32.06393318,241.62,241.54,32.06393318]
[1737198819862,32.06393318,241.64,241.57,23.776884]
[1737198820032,32.06393318,241.66,241.57,23.776884]
[1737198820541,32.06393318,241.66,241.59,23.776884]
[1737198821761,32.06393318,241.62,241.55,4.1399]
[1737198821980,32.06393318,241.6,241.51,4.1406]
[1737198822139,32.06393318,241.56,241.49,72.0408]
[1737198822458,32.06393318,241.52,241.49,67.9]
[1737198822655,32.06393318,241.5,241.4,32.06393318]
[1737198822834,32.06393318,241.46,241.38,32.06393318]
[1737198823035,32.06393318,241.44,241.36,4.1431]
[1737198823261,32.06393318,241.41,241.35,72.0433]
[1737198823662,32.06393318,241.41,241.35,67.9]
[1737198823962,32.06393318,241.39,241.35,67.9]
[1737198824133,32.06393318,241.39,241.35,72.0432]
[1737198824329,32.06393318,241.39,241.29,10.3607]
[1737198824330,32.06393318,241.37,241.29,4.1443]
[1737198824541,32.06393318,241.35,241.29,4.1443]
[1737198825464,32.06393318,241.35,241.29,20.0]
[1737198825638,32.06393318,241.35,241.3,20.0]